[Event "12th Arad Open 2019"]
[Site "Arad"]
[Date "2019.07.29"]
[Round "7.9"]
[White "Macovei, Andrei"]
[Black "Gilea, Lucian"]
[Result "1/2-1/2"]
[ECO "C11"]
[WhiteElo "2424"]
[BlackElo "2287"]
[Annotator "NA"]
[PlyCount "77"]
[EventDate "2019.07.24"]
[EventType "swiss"]
[EventCountry "ROU"]
[SourceTitle "playchess.com"]
[Source "ChessBase"]
[SourceQuality "1"]
[TimeControl "40/5400+30:900+30"]

1. e4 {[%emt 0:00:00]} e6 {[%emt 0:00:00]} 2. d4 {[%emt 0:00:52]} d5 {[%emt 0:00:00]} 3. Nc3 {[%emt 0:00:04]} Nf6 {[%emt 0:00:00]} 4. e5 {[%emt 0:01:24]} Nfd7 {[%emt 0:00:00]} 5. f4 {[%emt 0:00:04]} c5 {[%emt 0:00:00]} 6. Nf3 {[%emt 0:00:02]} Nc6 {[%emt 0:00:01]} 7. Be3 {[%emt 0:00:02]} a6 {[%emt 0:00:14]} 8. Qd2 {[%emt 0:03:58]} b5 {[%emt 0:00:13]} 9. a3 {[%emt 0:01:08]} Qc7 {[%emt 0:01:29]} 10. Be2 {[%emt 0:08:28]} Bb7 {[%emt 0:04:06]} 11. O-O {[%emt 0:02:26]} Be7 {[%emt 0:02:10]} 12. dxc5 {[%emt 0:23:30]} Bxc5 {[%emt 0:00:51]} 13. Bxc5 {[%emt 0:04:52]} Nxc5 {[%emt 0:00:03]} 14. Qe3 {[%emt 0:00:23]} Nd7 {[%emt 0:04:17]} 15. Bd3 {[%emt 0:01:17]} Qb6 {[%emt 0:08:11]} 16. Qxb6 {[%emt 0:01:57]} Nxb6 {[%emt 0:00:02]} 17. b3 {[%emt 0:00:29]} O-O {[%emt 0:04:20]} 18. Ne2 {[%emt 0:00:18]} f6 {[%emt 0:02:52]} 19. Ned4 {[%emt 0:00:24]} Nxd4 {[%emt 0:08:18]} 20. Nxd4 {[%emt 0:00:02]} fxe5 {[%emt 0:00:09]} 21. fxe5 {[%emt 0:08:34]} Rxf1+ {[%emt 0:03:10]} 22. Rxf1 {[%emt 0:00:38]} Nd7 {[%emt 0:00:13]} 23. Bxh7+ {[%emt 0:07:00]} Kxh7 {[%emt 0:00:20]} 24. Rf7 {[%emt 0:00:02]} Bc8 {[%emt 0:01:00]} 25. Nxe6 {[%emt 0:01:11]} Nxe5 {[%emt 0:01:03]} 26. Rxg7+ {[%emt 0:00:01]} Kh6 {[%emt 0:04:18]} 27. Re7 {[%emt 0:01:01]} Ng6 {[%emt 0:02:12]} 28. Re8 {[%emt 0:00:05]} Bb7 {[%emt 0:00:06]} 29. Rxa8 {[%emt 0:00:18]} Bxa8 {[%emt 0:00:01]} 30. Kf2 {[%emt 0:00:18]} Bb7 {[%emt 0:14:46]} 31. Ke3 {[%emt 0:00:28]} Bc8 {[%emt 0:00:59]} 32. Nc7 {[%emt 0:00:26]} Nh4 {[%emt 0:00:59]} 33. Nxd5 {[%emt 0:00:25]} Nxg2+ {[%emt 0:00:27]} 34. Kd4 {[%emt 0:00:02]} Ne1 {[%emt 0:00:39]} 35. c4 {[%emt 0:03:00]} Nc2+ {[%emt 0:04:27]} 36. Kc3 {[%emt 0:00:16]} Nxa3 {[%emt 0:00:18]} 37. Kb2 {[%emt 0:00:04]} Nxc4+ {[%emt 0:00:36]} 38. bxc4 {[%emt 0:00:02]} bxc4 {[%emt 0:01:08]} 39. Ne3 {[%emt 0:00:06]} 1/2-1/2

[Event "12th Arad Open 2019"]
[Site "Arad"]
[Date "2019.07.29"]
[Round "7.10"]
[White "Zawadzka, Jolanta"]
[Black "Lyell, Mark"]
[Result "1/2-1/2"]
[ECO "B12"]
[WhiteElo "2422"]
[BlackElo "2216"]
[Annotator "NA"]
[PlyCount "143"]
[EventDate "2019.07.24"]
[EventType "swiss"]
[EventCountry "ROU"]
[SourceTitle "playchess.com"]
[Source "ChessBase"]
[SourceQuality "1"]
[TimeControl "40/5400+30:900+30"]

1. e4 {[%emt 0:00:00]} c6 {[%emt 0:00:00]} 2. d4 {[%emt 0:00:00]} d5 {[%emt 0:00:00]} 3. e5 {[%emt 0:00:00]} c5 {[%emt 0:00:00]} 4. dxc5 {[%emt 0:00:07]} Nc6 {[%emt 0:00:02]} 5. f4 {[%emt 0:00:26]} Nh6 {[%emt 0:00:18]} 6. c3 {[%emt 0:01:19]} e6 {[%emt 0:01:56]} 7. Be3 {[%emt 0:03:31]} g5 {[%emt 0:03:58]} 8. fxg5 {[%emt 0:20:07]} Nf5 {[%emt 0:00:11]} 9. Bf4 {[%emt 0:00:09]} Bxc5 {[%emt 0:01:13]} 10. Nf3 {[%emt 0:04:17]} Qb6 {[%emt 0:08:17]} 11. Qb3 {[%emt 0:17:31]} Bf2+ {[%emt 0:07:11]} 12. Kd1 {[%emt 0:00:53]} Qc7 {[%emt 0:03:22]} 13. Bd3 {[%emt 0:02:38]} Ne3+ {[%emt 0:08:45]} 14. Bxe3 {[%emt 0:01:40]} Bxe3 {[%emt 0:00:05]} 15. Re1 {[%emt 0:00:21]} Bc5 {[%emt 0:09:06]} 16. Nbd2 {[%emt 0:06:38]} Bd7 {[%emt 0:01:59]} 17. Qc2 {[%emt 0:01:01]} h6 {[%emt 0:05:11]} 18. g6 {[%emt 0:02:02]} O-O-O {[%emt 0:08:33]} 19. Nb3 {[%emt 0:04:24]} Bb6 {[%emt 0:10:54]} 20. gxf7 {[%emt 0:00:25]} Rdf8 {[%emt 0:05:16]} 21. Nbd4 {[%emt 0:04:18]} Nxd4 {[%emt 0:02:43]} 22. cxd4 {[%emt 0:00:41]} Qxc2+ {[%emt 0:01:09]} 23. Kxc2 {[%emt 0:00:47]} Rxf7 {[%emt 0:00:03]} 24. Re2 {[%emt 0:02:28]} Rf4 {[%emt 0:01:31]} 25. Kc3 {[%emt 0:01:26]} Be8 {[%emt 0:02:59]} 26. Rd2 {[%emt 0:02:30]} Bh5 {[%emt 0:01:05]} 27. Be2 {[%emt 0:01:13]} Rh7 {[%emt 0:01:10]} 28. Rf1 {[%emt 0:04:25]} Kd8 {[%emt 0:05:23]} 29. h3 {[%emt 0:06:42]} Rc7+ {[%emt 0:00:42]} 30. Kb3 {[%emt 0:00:05]} Bxf3 {[%emt 0:02:03]} 31. Rxf3 {[%emt 0:00:06]} Rxd4 {[%emt 0:00:09]} 32. Rxd4 {[%emt 0:00:30]} Bxd4 33. Rf6 {[%emt 0:00:38]} Ke7 {[%emt 0:00:41]} 34. Rxh6 {[%emt 0:02:40]} Bxe5 {[%emt 0:00:13]} 35. a4 {[%emt 0:04:39]} Bf4 {[%emt 0:03:42]} 36. Rg6 {[%emt 0:00:44]} e5 {[%emt 0:01:30]} 37. g3 {[%emt 0:00:14]} Be3 {[%emt 0:02:33]} 38. h4 {[%emt 0:00:57]} e4 {[%emt 0:00:47]} 39. h5 {[%emt 0:00:25]} Rc6 {[%emt 0:01:17]} 40. Rg8 {[%emt 0:00:00]} Rb6+ {[%emt 0:00:00]} 41. Ka2 {[%emt 0:05:05]} d4 {[%emt 0:09:15]} 42. Bc4 {[%emt 0:04:30]} Bf2 {[%emt 0:09:27]} 43. Rg4 {[%emt 0:06:49]} e3 {[%emt 0:00:34]} 44. Rxd4 {[%emt 0:00:09]} Kf6 {[%emt 0:00:29]} 45. h6 {[%emt 0:01:53]} Kg6 {[%emt 0:00:30]} 46. Rh4 {[%emt 0:00:40]} Kh7 {[%emt 0:00:56]} 47. Bd3+ {[%emt 0:00:06]} Kh8 {[%emt 0:00:08]} 48. Kb1 {[%emt 0:03:14]} Bxg3 {[%emt 0:00:16]} 49. Rg4 {[%emt 0:00:22]} Rd6 {[%emt 0:00:55]} 50. Kc2 {[%emt 0:00:29]} Be5 {[%emt 0:00:17]} 51. h7 {[%emt 0:00:13]} Rd8 {[%emt 0:00:38]} 52. Re4 {[%emt 0:00:33]} Bxb2 {[%emt 0:00:21]} 53. Rxe3 {[%emt 0:00:12]} Bd4 {[%emt 0:00:26]} 54. Re7 {[%emt 0:00:07]} b6 {[%emt 0:00:44]} 55. Kd2 {[%emt 0:01:56]} Bc5 {[%emt 0:00:44]} 56. Rb7 {[%emt 0:00:36]} a5 {[%emt 0:00:43]} 57. Ke2 {[%emt 0:00:30]} Rf8 {[%emt 0:00:04]} 58. Be4 {[%emt 0:00:31]} Rf6 {[%emt 0:00:43]} 59. Kd3 {[%emt 0:00:31]} Rd6+ {[%emt 0:00:21]} 60. Kc3 {[%emt 0:00:29]} Rd8 {[%emt 0:00:49]} 61. Bg6 {[%emt 0:01:11]} Bg1 {[%emt 0:00:30]} 62. Kc4 {[%emt 0:00:54]} Bd4 {[%emt 0:00:33]} 63. Kb5 {[%emt 0:00:37]} Be5 {[%emt 0:00:31]} 64. Rxb6 {[%emt 0:00:50]} Rb8 {[%emt 0:00:01]} 65. Rxb8+ {[%emt 0:00:12]} Bxb8 {[%emt 0:00:19]} 66. Kxa5 {[%emt 0:00:04]} Ba7 {[%emt 0:00:22]} 67. Ka6 {[%emt 0:00:20]} Bg1 {[%emt 0:00:11]} 68. a5 {[%emt 0:00:04]} Bf2 {[%emt 0:00:22]} 69. Kb7 {[%emt 0:00:04]} Bg1 {[%emt 0:00:13]} 70. a6 {[%emt 0:00:24]} Bf2 {[%emt 0:00:14]} 71. a7 {[%emt 0:00:06]} Bxa7 {[%emt 0:00:05]} 72. Kxa7 {[%emt 0:00:12]} 1/2-1/2

[Event "12th Arad Open 2019"]
[Site "Arad"]
[Date "2019.07.29"]
[Round "7.11"]
[White "Secheres, Adrian-Simion"]
[Black "Barrish, Daniel"]
[Result "1/2-1/2"]
[ECO "C54"]
[WhiteElo "2394"]
[BlackElo "2237"]
[Annotator "NA"]
[PlyCount "55"]
[EventDate "2019.07.24"]
[EventType "swiss"]
[EventCountry "ROU"]
[SourceTitle "playchess.com"]
[Source "ChessBase"]
[SourceQuality "1"]
[TimeControl "40/5400+30:900+30"]

1. e4 e5 2. Nf3 Nc6 3. Bc4 Bc5 4. c3 Nf6 5. d3 O-O 6. O-O d5 7. exd5 Nxd5 8. Re1 Bg4 9. h3 Bh5 10. Nbd2 Nb6 11. b4 Be7 12. Bb3 Qxd3 13. Nxe5 Bxd1 14. Nxd3 Bxb3 15. axb3 a6 16. Ne4 Nd5 17. Nf4 Rad8 18. Rd1 Nf6 19. Nxf6+ Bxf6 20. Nd5 Be5 21. Be3 Rfe8 22. Rac1 Bd6 23. Bc5 Bxc5 24. bxc5 Rc8 25. b4 Ne7 26. Ne3 Rcd8 27. Kf1 Kf8 28. g3 1/2-1/2

[Event "12th Arad Open 2019"]
[Site "Arad"]
[Date "2019.07.29"]
[Round "7.15"]
[White "Kantorik, Marian"]
[Black "Ciorgovean, Iustin"]
[Result "0-1"]
[ECO "E32"]
[WhiteElo "2196"]
[BlackElo "2330"]
[Annotator "NA"]
[PlyCount "76"]
[EventDate "2019.07.24"]
[EventType "swiss"]
[EventCountry "ROU"]
[SourceTitle "playchess.com"]
[Source "ChessBase"]
[SourceQuality "1"]
[TimeControl "40/5400+30:900+30"]

1. d4 {[%emt 0:00:15]} Nf6 {[%emt 0:00:00]} 2. c4 {[%emt 0:00:22]} e6 {[%emt 0:00:00]} 3. Nc3 {[%emt 0:00:34]} Bb4 {[%emt 0:00:00]} 4. Qc2 {[%emt 0:01:58]} O-O {[%emt 0:00:29]} 5. e4 {[%emt 0:01:08]} d5 {[%emt 0:03:02]} 6. e5 {[%emt 0:00:15]} Ne4 {[%emt 0:01:29]} 7. Bd3 {[%emt 0:00:18]} c5 {[%emt 0:00:34]} 8. Nge2 {[%emt 0:01:26]} cxd4 {[%emt 0:00:39]} 9. Nxd4 {[%emt 0:00:26]} Nd7 {[%emt 0:00:23]} 10. Bf4 {[%emt 0:05:14]} Qh4 {[%emt 0:02:12]} 11. g3 {[%emt 0:01:23]} Qh5 {[%emt 0:03:18]} 12. O-O {[%emt 0:02:39]} g5 {[%emt 0:12:56]} 13. Bxe4 {[%emt 0:18:10]} dxe4 {[%emt 0:01:52]} 14. Be3 {[%emt 0:03:58]} Bxc3 {[%emt 0:10:36]} 15. bxc3 {[%emt 0:06:58]} Nxe5 {[%emt 0:10:01]} 16. Qxe4 {[%emt 0:00:12]} Ng4 {[%emt 0:00:44]} 17. Qg2 {[%emt 0:02:46]} e5 {[%emt 0:00:32]} 18. Nb5 {[%emt 0:02:22]} Bf5 {[%emt 0:08:04]} 19. Nc7 {[%emt 0:05:43]} Be4 {[%emt 0:01:44]} 20. f3 {[%emt 0:00:19]} Nxe3 {[%emt 0:00:06]} 21. Qf2 {[%emt 0:01:01]} Nxf1 {[%emt 0:01:24]} 22. fxe4 {[%emt 0:01:14]} Qxh2+ {[%emt 0:02:01]} 23. Qxh2 {[%emt 0:00:31]} Nxh2 {[%emt 0:00:04]} 24. Nxa8 {[%emt 0:01:51]} Rxa8 {[%emt 0:00:06]} 25. Kxh2 {[%emt 0:00:05]} Rc8 {[%emt 0:00:51]} 26. Rb1 {[%emt 0:00:23]} Rxc4 {[%emt 0:00:45]} 27. Rxb7 {[%emt 0:00:06]} Rxc3 {[%emt 0:01:30]} 28. Rxa7 {[%emt 0:01:24]} Rc4 {[%emt 0:00:30]} 29. g4 {[%emt 0:00:29]} Rxe4 {[%emt 0:00:21]} 30. Kg3 {[%emt 0:00:06]} Kg7 {[%emt 0:00:43]} 31. a4 {[%emt 0:00:38]} Re3+ {[%emt 0:03:53]} 32. Kf2 {[%emt 0:06:17]} Re4 {[%emt 0:00:51]} 33. Kg3 {[%emt 0:00:51]} Rf4 {[%emt 0:07:17]} 34. a5 {[%emt 0:01:33]} h5 {[%emt 0:00:10]} 35. gxh5 {[%emt 0:01:17]} Kh6 {[%emt 0:00:10]} 36. Re7 {[%emt 0:09:48]} f6 {[%emt 0:03:56]} 37. a6 {[%emt 0:01:14]} Kxh5 {[%emt 0:00:32]} 38. a7 {[%emt 0:00:52]} Ra4 {[%emt 0:00:14]} 0-1

[Event "12th Arad Open 2019"]
[Site "Arad"]
[Date "2019.07.29"]
[Round "7.16"]
[White "Isfan, Ioan-Marius"]
[Black "Petrisor, Adrian-Marian"]
[Result "1/2-1/2"]
[ECO "D38"]
[WhiteElo "2164"]
[BlackElo "2422"]
[Annotator "NA"]
[PlyCount "32"]
[EventDate "2019.07.24"]
[EventType "swiss"]
[EventCountry "ROU"]
[SourceTitle "playchess.com"]
[Source "ChessBase"]
[SourceQuality "1"]
[TimeControl "40/5400+30:900+30"]

1. d4 {[%emt 0:06:22]} Nf6 {[%emt 0:00:00]} 2. Nf3 {[%emt 0:00:04]} e6 {[%emt 0:00:00]} 3. c4 {[%emt 0:00:05]} d5 {[%emt 0:00:00]} 4. Nc3 {[%emt 0:00:05]} Bb4 {[%emt 0:02:49]} 5. Qa4+ {[%emt 0:00:48]} Nc6 {[%emt 0:00:07]} 6. Bd2 {[%emt 0:00:06]} O-O {[%emt 0:00:29]} 7. e3 {[%emt 0:01:14]} a6 {[%emt 0:01:44]} 8. Rd1 {[%emt 0:01:36]} Bd7 {[%emt 0:05:03]} 9. Qc2 {[%emt 0:00:18]} Re8 {[%emt 0:05:47]} 10. a3 {[%emt 0:02:13]} Bf8 {[%emt 0:01:14]} 11. h3 {[%emt 0:07:33]} g6 {[%emt 0:08:33]} 12. Bd3 {[%emt 0:00:35]} dxc4 {[%emt 0:05:12]} 13. Bxc4 {[%emt 0:00:54]} b5 {[%emt 0:00:05]} 14. Bd3 {[%emt 0:04:56]} b4 {[%emt 0:01:42]} 15. Ne4 {[%emt 0:00:03]} a5 {[%emt 0:08:55]} 16. Nc5 {[%emt 0:01:20]} Rb8 {[%emt 0:04:19]} 1/2-1/2

[Event "12th Arad Open 2019"]
[Site "Arad"]
[Date "2019.07.29"]
[Round "7.17"]
[White "Martinovici, Ilie"]
[Black "Sarmir, Milos"]
[Result "1/2-1/2"]
[ECO "A50"]
[WhiteElo "2407"]
[BlackElo "2098"]
[Annotator "NA"]
[PlyCount "166"]
[EventDate "2019.07.24"]
[EventType "swiss"]
[EventCountry "ROU"]
[SourceTitle "playchess.com"]
[Source "ChessBase"]
[SourceQuality "1"]
[TimeControl "40/5400+30:900+30"]

1. d4 {[%emt 0:00:00]} Nf6 {[%emt 0:00:00]} 2. c4 {[%emt 0:00:00]} c6 {[%emt 0:00:00]} 3. Nf3 {[%emt 0:00:00]} d5 {[%emt 0:00:00]} 4. Qc2 {[%emt 0:00:00]} e6 {[%emt 0:00:09]} 5. Bg5 {[%emt 0:00:06]} Be7 {[%emt 0:00:09]} 6. e3 {[%emt 0:00:12]} Nbd7 {[%emt 0:00:13]} 7. Nc3 {[%emt 0:00:19]} h6 {[%emt 0:00:15]} 8. Bh4 {[%emt 0:00:14]} O-O {[%emt 0:00:19]} 9. cxd5 {[%emt 0:00:59]} cxd5 {[%emt 0:01:46]} 10. Bd3 {[%emt 0:00:10]} a6 {[%emt 0:01:37]} 11. O-O {[%emt 0:01:26]} Nh5 {[%emt 0:00:48]} 12. Bxe7 {[%emt 0:01:04]} Qxe7 {[%emt 0:00:02]} 13. Rac1 {[%emt 0:01:15]} Nhf6 {[%emt 0:01:07]} 14. Qb3 {[%emt 0:05:37]} b5 {[%emt 0:02:19]} 15. a4 {[%emt 0:00:18]} b4 {[%emt 0:00:58]} 16. Ne2 {[%emt 0:03:29]} a5 {[%emt 0:00:19]} 17. Rc7 {[%emt 0:00:25]} Ne8 {[%emt 0:02:05]} 18. Rc2 {[%emt 0:00:32]} Ba6 {[%emt 0:01:44]} 19. Rfc1 {[%emt 0:01:53]} Bxd3 {[%emt 0:08:43]} 20. Qxd3 {[%emt 0:00:02]} Nd6 {[%emt 0:00:47]} 21. Ne5 {[%emt 0:07:47]} Nxe5 {[%emt 0:03:12]} 22. dxe5 {[%emt 0:00:05]} Nc4 {[%emt 0:00:09]} 23. f4 {[%emt 0:00:34]} Qc5 {[%emt 0:04:11]} 24. Kf2 {[%emt 0:01:31]} b3 {[%emt 0:05:35]} 25. Qxb3 {[%emt 0:00:05]} Rfb8 {[%emt 0:01:20]} 26. Qc3 {[%emt 0:00:07]} Qb4 {[%emt 0:00:15]} 27. Nd4 {[%emt 0:06:50]} Nxb2 {[%emt 0:02:44]} 28. Nc6 {[%emt 0:03:45]} Qxc3 {[%emt 0:00:19]} 29. Rxc3 {[%emt 0:00:03]} Rb6 {[%emt 0:00:40]} 30. Kg3 {[%emt 0:03:38]} Nc4 {[%emt 0:02:51]} 31. Nd4 {[%emt 0:00:43]} Rb4 {[%emt 0:00:32]} 32. Nb3 {[%emt 0:04:11]} Nb6 {[%emt 0:04:06]} 33. Nd4 {[%emt 0:01:16]} Rxa4 {[%emt 0:01:05]} 34. Nb5 {[%emt 0:04:12]} Rc4 {[%emt 0:03:21]} 35. Na3 {[%emt 0:00:16]} Rxc3 {[%emt 0:02:20]} 36. Rxc3 {[%emt 0:00:01]} Rc8 {[%emt 0:02:18]} 37. Rb3 {[%emt 0:00:25]} Nc4 {[%emt 0:01:05]} 38. Rc3 {[%emt 0:00:10]} Rb8 {[%emt 0:01:50]} 39. Nxc4 {[%emt 0:00:33]} Rc8 {[%emt 0:00:08]} 40. Ra3 {[%emt 0:00:00]} Rxc4 {[%emt 0:00:00]} 41. Rxa5 {[%emt 0:00:54]} g6 {[%emt 0:04:35]} 42. Kf3 {[%emt 0:00:39]} Kg7 {[%emt 0:01:03]} 43. Ra3 {[%emt 0:00:26]} Rb4 {[%emt 0:00:37]} 44. Rd3 {[%emt 0:00:07]} Ra4 {[%emt 0:00:27]} 45. Rd4 {[%emt 0:01:28]} Ra3 {[%emt 0:00:28]} 46. Rd2 {[%emt 0:00:12]} Ra4 {[%emt 0:00:17]} 47. Re2 {[%emt 0:00:08]} Re4 {[%emt 0:01:54]} 48. g3 {[%emt 0:00:35]} g5 {[%emt 0:00:47]} 49. h3 {[%emt 0:01:22]} Kg6 {[%emt 0:01:01]} 50. Ra2 {[%emt 0:00:31]} Kg7 {[%emt 0:00:29]} 51. Ra7 {[%emt 0:01:11]} h5 {[%emt 0:01:31]} 52. Ra3 {[%emt 0:04:18]} Kg6 {[%emt 0:00:32]} 53. Rb3 {[%emt 0:02:40]} Ra4 {[%emt 0:00:32]} 54. Rb8 {[%emt 0:00:17]} Kg7 {[%emt 0:00:37]} 55. fxg5 {[%emt 0:05:58]} Re4 {[%emt 0:00:09]} 56. h4 {[%emt 0:00:04]} Rxe5 {[%emt 0:00:07]} 57. Rb4 {[%emt 0:00:03]} Kg6 {[%emt 0:01:40]} 58. Rf4 {[%emt 0:05:43]} Rf5 {[%emt 0:03:25]} 59. e4 {[%emt 0:00:06]} dxe4+ {[%emt 0:03:26]} 60. Kxe4 {[%emt 0:00:03]} Ra5 {[%emt 0:00:56]} 61. Rf6+ {[%emt 0:03:28]} Kg7 {[%emt 0:00:02]} 62. Kf3 {[%emt 0:01:04]} Ra3+ {[%emt 0:01:38]} 63. Kg2 {[%emt 0:00:22]} Ra2+ {[%emt 0:00:05]} 64. Kh3 {[%emt 0:01:02]} Ra8 {[%emt 0:00:16]} 65. Rf3 {[%emt 0:00:12]} Ra1 {[%emt 0:00:55]} 66. Rf4 {[%emt 0:00:20]} Ra3 {[%emt 0:00:36]} 67. Rf6 {[%emt 0:00:12]} Ra8 {[%emt 0:00:09]} 68. Rh6 {[%emt 0:01:46]} Rh8 {[%emt 0:00:06]} 69. Rxh8 {[%emt 0:01:13]} Kxh8 {[%emt 0:00:03]} 70. g4 {[%emt 0:00:05]} hxg4+ {[%emt 0:00:52]} 71. Kxg4 {[%emt 0:00:05]} Kg7 {[%emt 0:00:22]} 72. h5 {[%emt 0:00:23]} f6 {[%emt 0:00:31]} 73. g6 {[%emt 0:00:13]} Kh6 {[%emt 0:00:15]} 74. Kf4 {[%emt 0:00:06]} Kg7 {[%emt 0:00:12]} 75. Ke4 {[%emt 0:00:12]} Kh6 {[%emt 0:00:21]} 76. Ke3 {[%emt 0:01:26]} Kg7 {[%emt 0:00:13]} 77. Kd4 {[%emt 0:00:04]} Kh6 {[%emt 0:00:25]} 78. Kc5 {[%emt 0:02:58]} f5 {[%emt 0:02:21]} 79. Kd4 {[%emt 0:00:02]} f4 {[%emt 0:00:11]} 80. Kd3 {[%emt 0:00:51]} e5 {[%emt 0:00:09]} 81. Ke4 {[%emt 0:00:01]} Kg7 {[%emt 0:00:21]} 82. Kf3 {[%emt 0:00:06]} Kh6 {[%emt 0:00:08]} 83. Kg4 {[%emt 0:00:01]} Kg7 {[%emt 0:00:11]} 1/2-1/2

[Event "12th Arad Open 2019"]
[Site "Arad"]
[Date "2019.07.29"]
[Round "7.18"]
[White "Dobrin, Ionut-Alexandru"]
[Black "Ahlander, Bjorn"]
[Result "1/2-1/2"]
[ECO "E20"]
[WhiteElo "2142"]
[BlackElo "2391"]
[Annotator "NA"]
[PlyCount "117"]
[EventDate "2019.07.24"]
[EventType "swiss"]
[EventCountry "ROU"]
[SourceTitle "playchess.com"]
[Source "ChessBase"]
[SourceQuality "1"]
[TimeControl "40/5400+30:900+30"]

1. d4 {[%emt 0:00:00]} Nf6 {[%emt 0:00:00]} 2. c4 {[%emt 0:00:00]} e6 {[%emt 0:00:00]} 3. Nc3 {[%emt 0:00:00]} Bb4 {[%emt 0:00:00]} 4. f3 {[%emt 0:00:01]} c5 {[%emt 0:00:30]} 5. a3 {[%emt 0:00:05]} Bxc3+ {[%emt 0:00:24]} 6. bxc3 {[%emt 0:00:10]} Nc6 {[%emt 0:00:18]} 7. e4 {[%emt 0:02:30]} d6 {[%emt 0:00:07]} 8. Be3 {[%emt 0:01:09]} b6 {[%emt 0:02:09]} 9. Bd3 {[%emt 0:00:11]} Na5 {[%emt 0:01:21]} 10. Qe2 {[%emt 0:06:42]} e5 {[%emt 0:05:20]} 11. d5 {[%emt 0:00:11]} Nh5 {[%emt 0:03:47]} 12. g3 {[%emt 0:12:10]} O-O {[%emt 0:03:15]} 13. a4 {[%emt 0:20:27]} f5 {[%emt 0:02:37]} 14. exf5 {[%emt 0:03:20]} Bxf5 {[%emt 0:01:55]} 15. Bxf5 {[%emt 0:00:35]} Rxf5 {[%emt 0:00:02]} 16. Nh3 {[%emt 0:01:42]} Qf6 {[%emt 0:11:55]} 17. O-O {[%emt 0:07:05]} Qg6 {[%emt 0:00:04]} 18. Rae1 {[%emt 0:04:19]} Raf8 {[%emt 0:02:14]} 19. Kh1 {[%emt 0:02:36]} Nxc4 {[%emt 0:10:52]} 20. Qxc4 {[%emt 0:07:24]} Nxg3+ {[%emt 0:01:00]} 21. hxg3 {[%emt 0:00:05]} Qxg3 {[%emt 0:00:11]} 22. Re2 {[%emt 0:04:46]} Rh5 {[%emt 0:02:46]} 23. Rg2 {[%emt 0:02:14]} Qxh3+ {[%emt 0:06:37]} 24. Kg1 {[%emt 0:00:04]} Rxf3 {[%emt 0:04:23]} 25. Rxf3 {[%emt 0:00:51]} Qxf3 {[%emt 0:00:03]} 26. Qe2 {[%emt 0:00:40]} Qh3 {[%emt 0:15:44]} 27. Rh2 {[%emt 0:00:16]} Qg3+ {[%emt 0:00:39]} 28. Rg2 {[%emt 0:00:02]} Qh3 {[%emt 0:00:08]} 29. Rh2 {[%emt 0:07:08]} Qxh2+ {[%emt 0:00:47]} 30. Qxh2 {[%emt 0:00:06]} Rxh2 {[%emt 0:00:12]} 31. Kxh2 {[%emt 0:00:01]} h6 {[%emt 0:00:30]} 32. Kh3 {[%emt 0:05:29]} Kf7 {[%emt 0:00:03]} 33. Kg4 {[%emt 0:00:29]} Kf6 {[%emt 0:00:03]} 34. c4 {[%emt 0:00:07]} g5 {[%emt 0:09:12]} 35. Bd2 {[%emt 0:01:26]} Kg6 {[%emt 0:00:35]} 36. a5 {[%emt 0:00:26]} h5+ {[%emt 0:00:24]} 37. Kf3 {[%emt 0:01:18]} Kf5 {[%emt 0:00:18]} 38. a6 {[%emt 0:00:02]} h4 {[%emt 0:02:06]} 39. Be3 {[%emt 0:02:22]} g4+ {[%emt 0:03:18]} 40. Kg2 {[%emt 0:00:00]} g3 {[%emt 0:00:00]} 41. Kh3 {[%emt 0:05:10]} Ke4 {[%emt 0:12:12]} 42. Bg5 {[%emt 0:00:13]} Kf3 {[%emt 0:05:46]} 43. Bxh4 {[%emt 0:00:24]} g2 {[%emt 0:00:03]} 44. Kh2 {[%emt 0:00:10]} e4 {[%emt 0:00:12]} 45. Kg1 {[%emt 0:00:40]} e3 {[%emt 0:01:17]} 46. Be7 {[%emt 0:01:08]} e2 {[%emt 0:03:46]} 47. Bh4 {[%emt 0:00:05]} Ke3 {[%emt 0:01:09]} 48. Kxg2 {[%emt 0:00:16]} Kd3 {[%emt 0:03:44]} 49. Kf2 {[%emt 0:00:08]} Kxc4 {[%emt 0:00:24]} 50. Bd8 {[%emt 0:03:30]} b5 {[%emt 0:01:54]} 51. Kxe2 {[%emt 0:00:17]} Kxd5 {[%emt 0:00:46]} 52. Bb6 {[%emt 0:03:36]} b4 {[%emt 0:00:49]} 53. Bxa7 {[%emt 0:00:32]} Kc6 {[%emt 0:00:02]} 54. Kd3 {[%emt 0:00:29]} Kb5 {[%emt 0:00:25]} 55. Bxc5 {[%emt 0:00:08]} Kxa6 {[%emt 0:00:14]} 56. Bxb4 {[%emt 0:00:05]} Kb5 {[%emt 0:00:07]} 57. Kd4 {[%emt 0:00:10]} Kxb4 {[%emt 0:00:03]} 58. Kd5 {[%emt 0:00:03]} Kb5 {[%emt 0:00:09]} 59. Kxd6 {[%emt 0:00:06]} 1/2-1/2

[Event "12th Arad Open 2019"]
[Site "Arad"]
[Date "2019.07.29"]
[Round "7.19"]
[White "Nicora, Cristi"]
[Black "Bogdan, Dan"]
[Result "0-1"]
[ECO "B56"]
[WhiteElo "2102"]
[BlackElo "2370"]
[Annotator "NA"]
[PlyCount "52"]
[EventDate "2019.07.24"]
[EventType "swiss"]
[EventCountry "ROU"]
[SourceTitle "playchess.com"]
[Source "ChessBase"]
[SourceQuality "1"]
[TimeControl "40/5400+30:900+30"]

1. e4 {[%emt 0:00:00]} c5 {[%emt 0:00:00]} 2. Nf3 {[%emt 0:00:00]} d6 {[%emt 0:00:00]} 3. d4 {[%emt 0:00:00]} cxd4 {[%emt 0:00:39]} 4. Nxd4 {[%emt 0:00:00]} Nf6 {[%emt 0:00:08]} 5. Nc3 {[%emt 0:00:00]} Nbd7 {[%emt 0:00:51]} 6. Bc4 {[%emt 0:02:47]} g6 {[%emt 0:05:19]} 7. Be3 {[%emt 0:01:51]} a6 {[%emt 0:04:46]} 8. O-O {[%emt 0:03:16]} Bg7 {[%emt 0:03:15]} 9. f3 {[%emt 0:01:47]} b5 {[%emt 0:02:11]} 10. Bb3 {[%emt 0:01:03]} Bb7 {[%emt 0:01:25]} 11. Qd2 {[%emt 0:00:32]} O-O {[%emt 0:03:49]} 12. Rad1 {[%emt 0:01:18]} Nc5 {[%emt 0:03:32]} 13. Rfe1 {[%emt 0:01:07]} Rc8 {[%emt 0:02:39]} 14. Qf2 {[%emt 0:01:39]} Nxb3 {[%emt 0:02:59]} 15. Nxb3 {[%emt 0:01:46]} Nd7 {[%emt 0:10:21]} 16. Bd4 {[%emt 0:01:19]} Ne5 {[%emt 0:05:34]} 17. Nd5 {[%emt 0:05:36]} f5 {[%emt 0:04:35]} 18. Bb6 {[%emt 0:04:11]} Qd7 {[%emt 0:01:07]} 19. exf5 {[%emt 0:06:25]} Rxf5 {[%emt 0:05:26]} 20. f4 {[%emt 0:26:47]} Bxd5 {[%emt 0:01:18]} 21. Rxd5 {[%emt 0:00:08]} Ng4 {[%emt 0:02:40]} 22. Qf3 {[%emt 0:10:56]} Qc6 {[%emt 0:00:56]} 23. Rd2 {[%emt 0:02:50]} Qxb6+ {[%emt 0:00:06]} 24. Kh1 {[%emt 0:00:08]} Ne5 {[%emt 0:02:36]} 25. Qe4 {[%emt 0:02:26]} Rcf8 {[%emt 0:01:02]} 26. g3 {[%emt 0:01:34]} Nc4 {[%emt 0:00:35]} 0-1